Cogmind - Beta 16 @@@ ROGUE MODE // 2025.12.19 @ 00:56:38 Player: mephiles96 Result: Self-destructed Performance ------------- Evolutions (2) 1000 Regions Visited (3) 600 Robots Destroyed (34) 170 Value Destroyed (927) 927 Prototype IDs (1) 20 Alien Tech Used (0) 0 Bonus (0) 0 TOTAL SCORE: 2717 Bonus ------- None Cogmind --------- Core Integrity 239/550 Matter 285/300 Energy 280/280 System Corruption 0% Temperature Cool (7) Movement Walking (190) Ox1 Location -8/Materials Parts ------- > --- POWER (1) -------- Heavy Ion Engine > --- PROPULSION (4) --- Aluminum Leg Aluminum Leg Aluminum Leg > --- UTILITY (4) ------ Large Storage Unit Advanced Visual Processing Unit Improved Sensor Array Microactuators > --- WEAPON (2) ------- Flak Gun Powered Hammer > --- INVENTORY (15) --- Light Ion Engine Light Nuclear Core Light Nuclear Core Aluminum Leg Aluminum Leg Aluminum Leg Microactuators Assault Rifle Light Assault Rifle Flak Gun Flak Gun Flak Cannon Improved Datajack Powered Hammer Peak State ------------ > --- POWER ------------ Heavy Ion Engine > --- PROPULSION ------- Aluminum Leg Aluminum Leg Aluminum Leg Carbon-fiber Leg > --- UTILITY ---------- Large Storage Unit Advanced Visual Processing Unit Improved Sensor Array Microactuators > --- WEAPON ----------- Flak Gun Powered Hammer > --- INVENTORY -------- Light Ion Engine Light Nuclear Core Light Nuclear Core Aluminum Leg Aluminum Leg Aluminum Leg Assault Rifle Light Assault Rifle Flak Gun Flak Gun Flak Cannon Improved Datajack Powered Hammer [Rating: 31] Favorites ----------- Power Heavy Ion Engine Engine Heavy Ion Engine Propulsion Aluminum Leg Leg Aluminum Leg Utility Large Storage Unit Device Sensor Array Storage Large Storage Unit Processor Advanced Visual Processing Unit Protection Weapon Shielding Weapon Assault Rifle Energy Gun EM Pulse Gun Ballistic Gun Assault Rifle Impact Weapon Powered Hammer Build | -11 -10 -9 -8 ------- Run | Yrd Mat Mat Mat Slots Evolved 4 | . . 2 2 Power . | . . . . Propulsion 2 | . . 1 1 Utility 2 | . . 1 1 Weapon . | . . . . Parts Attached 34 | 7 8 1 18 Power 4 | 1 2 . 1 Engine 4 | 1 2 . 1 Core . | . . . . Reactor . | . . . . Propulsion 12 | 2 3 . 7 Treads . | . . . . Leg 12 | 2 3 . 7 Wheel . | . . . . Hover . | . . . . Flight . | . . . . Utility 11 | 2 3 . 6 Device 6 | 1 1 . 4 Storage 2 | 1 1 . . Processor 1 | . . . 1 Hackware . | . . . . Protection 2 | . 1 . 1 Artifact . | . . . . Weapon 7 | 2 . 1 4 Energy Gun 1 | . . . 1 Energy Cannon . | . . . . Ballistic Gun 5 | 2 . 1 2 Ballistic Cannon . | . . . . Launcher . | . . . . Special Weapon . | . . . . Impact Weapon 1 | . . . 1 Slashing Weapon . | . . . . Piercing Weapon . | . . . . Special Melee Weapon . | . . . . Unidentified Prototypes 1 | . 1 . . Parts Lost 13 | . 1 3 9 Power 1 | . . 1 . Propulsion 4 | . . . 4 Utility 6 | . 1 1 4 Weapon 2 | . . 1 1 Highest Loss Streak 3 | . 1 1 3 To Critical Strikes . | . . . . Average Backups 9 | 4 8 10 11 Power 1 | 1 1 1 1 Propulsion 3 | 2 3 3 3 Utility 2 | . 2 4 1 Weapon 2 | . 2 2 3 Tool/Special . | . . . . Unused Backups 17 | . 6 . 11 Power 4 | . 1 . 3 Propulsion 5 | . 5 . . Utility 1 | . . . 1 Weapon 6 | . . . 6 Tool/Special 1 | . . . 1 Average Slot Usage (%) 93 | . 94 97 90 Engine 11 | . 14 9 9 Leg 31 | . 28 33 33 Device 10 | . 7 11 13 Storage 11 | . 14 11 9 Protection 4 | . . 10 5 Ballistic Gun 21 | . 28 21 14 Peak Build Rating 31 | 7 10 12 31 Average Rating 11 | 4 8 11 17 On Entrance 6 | . 7 10 8 Avg Prop Armor Cover (%) . | . . . . Naked Turns . | . . . . Heaviest Build 39 | 15 33 34 39 Greatest Support 45 | 20 20 30 45 Greatest Overweight (x) 1 | . 1 1 1 Average Overweight (x) . | . . . . Largest Inventory Capacity 15 | 8 15 15 15 Average Capacity 13 | 7 12 15 15 Most Carried 15 | 8 13 12 15 Average Carried 10 | 4 8 10 11 Final Capacity 15 | 8 15 15 15 Final Carried 14 | 6 13 11 14 Class Distribution -------------------- 72% | Mutant 27% | Scavenger-Mutant Dominant Class ---------------- Mutant | -10/Materials Mutant | -9/Materials Scavenger-Mutant | -8/Materials Resources | -11 -10 -9 -8 ----------- Run | Yrd Mat Mat Mat Matter Collected 1159 | 294 269 150 446 Remotely 124 | 10 114 . . Salvage Created 1073 | 68 386 237 382 Parts 73 | 2 25 15 31 Haulers Intercepted . | . . . . Recyclers Shooed . | . . . . Parts Field Recycled . | . . . . Retrieved Matter . | . . . . Parts Self-Destructed . | . . . . Prevented . | . . . . Parts Restored . | . . . . Kills | -11 -10 -9 -8 ------- Run | Yrd Mat Mat Mat Combat Hostiles Destroyed 32 | . 11 7 14 Guns 32 | . 11 7 14 Classes Destroyed 7 | 1 2 1 3 Builder 1 | . . . 1 Recycler 1 | 1 . . . Swarmer 14 | . 3 3 8 Grunt 13 | . 8 2 3 Sentry 2 | . . 2 . Specialist 2 | . . . 2 Hunter 1 | . . . 1 Best Kill Streak 4 | 1 3 2 4 Combat Bots Only 4 | . 3 2 4 Max Kills in Single Turn 1 | 1 1 1 1 Gunslinging . | . . . . Exploded . | . . . . Melee . | . . . . Uniques/NPCs Destroyed . | . . . . Combat | -11 -10 -9 -8 -------- Run | Yrd Mat Mat Mat Hostile Shots Fired 277 | . 66 56 155 Missed 92 | . 21 22 49 Hits 185 | . 45 34 106 Projectile 185 | . 45 34 106 Critical Strikes 2 | . . 1 1 Damage Taken 2210 | . 519 362 1329 Core 523 | . 176 36 311 Absorbed by Shields . | . . . . Redirected to Shielding 100 | . 9 41 50 Core Remaining (%) 73 | 100 29 91 . Volleys Fired 122 | 4 35 23 60 Largest 2 | 2 2 2 2 Hottest 60 | 40 40 40 60 Shots Fired 216 | 8 70 45 93 Gun 216 | 8 70 45 93 Cannon . | . . . . Launcher . | . . . . Special . | . . . . Kinetic 212 | 8 70 45 89 Thermal . | . . . . Explosive . | . . . . Electromagnetic 4 | . . . 4 Robot Hit Streak 17 | 2 17 8 14 Robot Miss Streak 8 | 1 2 5 8 Penetration Max . | . . . . Secondary Targets 2 | . 1 1 . Max Gunslinging Chain 1 | . 1 1 . Shots Hit Robots 158 | 5 48 31 74 Core Hits 76 | 2 19 10 45 Critical Kills . | . . . . Critical Parts Destroyed 1 | . . . 1 Critical Strikes 1 | . . . 1 Destroy 1 | . . . 1 Melee Attacks 2 | . . . 2 Impact 2 | . . . 2 Slashing . | . . . . Piercing . | . . . . Sneak Attacks 1 | . . . 1 Combat Hostiles . | . . . . Follow-up Attacks . | . . . . Damage Inflicted 2009 | 62 629 400 918 Guns 1943 | 62 613 400 868 Cannons . | . . . . Explosions . | . . . . Melee 50 | . . . 50 Ramming 16 | . 16 . . Kinetic 1922 | 62 613 400 847 Thermal . | . . . . Explosive . | . . . . Electromagnetic 21 | . . . 21 Impact 50 | . . . 50 Slashing . | . . . . Piercing . | . . . . Highest Corruption 6 | . 6 . . Average Corruption 5 | . 5 . . Corruption Purged . | . . . . Corruption Blocked . | . . . . Effects 14 | . 14 . . Message Errors 4 | . 4 . . Matter Fused 6 | . 6 . . Energy Discharges 3 | . 3 . . Data Loss (minor) 1 | . 1 . . Overload Shots . | . . . . Overflow Damage 10 | . . . 10 Projectiles . | . . . . Explosions . | . . . . Melee 10 | . . . 10 Knockbacks . | . . . . Impact . | . . . . Kinetic . | . . . . Secondary . | . . . . Self-Inflicted Damage . | . . . . Shots . | . . . . Rammed . | . . . . Targets Rammed 3 | . 3 . . Kicked 3 | . 3 . . Crushed . | . . . . Highest Temperature 16 | . 2 12 16 Average Temperature 4 | . 2 12 5 Received Heat Transfer 627 | . 261 87 279 Siege Activations . | . . . . Martial Activations . | . . . . Shielding Activations . | . . . . Robots Disrupted . | . . . . Combat Hostiles . | . . . . Robots Corrupted . | . . . . Combat Hostiles . | . . . . Parts Fried . | . . . . Impact Corruptions 1 | . . . 1 Robots Melted . | . . . . Combat Hostiles . | . . . . Parts Melted . | . . . . Heat Transferred . | . . . . Parts Sabotaged . | . . . . Parts Stolen . | . . . . Parts Stripped . | . . . . Power Chain Reactions . | . . . . Alert | -11 -10 -9 -8 ------- Run | Yrd Mat Mat Mat Maximum Alert Level . | . . . . Low Security (%) 100 | 100 100 100 100 Level 1 . | . . . . Level 2 . | . . . . Level 3 . | . . . . Level 4 . | . . . . Level 5 . | . . . . High Security . | . . . . Max Security . | . . . . Peak Influence 111 | 5 71 111 95 Initial 40 | . . . 40 Average 28 | . 22 47 27 Influence Increases 937 | 5 276 301 355 Destroy 0b10 Robot/C 640 | . 220 140 280 Destroy 0b10 Robot/NC 10 | 5 . . 5 Destroy Leader 120 | . 40 40 40 Destroy Structure 2 | . 1 1 . Lose Combat Pursuer 165 | . 15 120 30 Influence Decreases 899 | 5 276 204 414 Entered New Map 57 | . . . 57 Time Decay 661 | 5 205 174 277 Lost Part 120 | . 10 30 80 Purge Threat 61 | . 61 . . Squads Dispatched 5 | . 1 1 3 Investigation 1 | . . . 1 Extermination . | . . . . Reinforcement 4 | . 1 1 2 Assault . | . . . . Garrison . | . . . . Intercept . | . . . . Searches Triggered . | . . . . Construction Impeded . | . . . . Haulers Reinforced . | . . . . Active Scanning Responses . | . . . . Cargo Convoy Interrupts . | . . . . Stealth | -11 -10 -9 -8 --------- Run | Yrd Mat Mat Mat Distress Signals 8 | . 5 . 3 Communications Jammed . | . . . . Distress Signals . | . . . . Times Spotted 62 | . 22 16 24 Peak Tracking Total 6 | . 5 5 6 Tactical Retreats 6 | . 1 3 2 Traps | -11 -10 -9 -8 ------- Run | Yrd Mat Mat Mat Traps Triggered 1 | . 1 . . Indirectly . | . . . . Trap Hack Attempts . | . . . . Triggered . | . . . . Disarmed 3 | . . . 3 Reprogrammed . | . . . . Reused . | . . . . Traps Extracted . | . . . . Installed . | . . . . Triggered . | . . . . Machines | -11 -10 -9 -8 ---------- Run | Yrd Mat Mat Mat Machines Disabled . | . . . . Max in Single Turn . | . . . . Machines Repaired . | . . . . Machines Dismantled . | . . . . Machines Sabotaged . | . . . . Overloaded Fab Kills . | . . . . Hacking | -11 -10 -9 -8 --------- Run | Yrd Mat Mat Mat Machines Accessed 4 | . 3 . 1 Terminals 4 | . 3 . 1 Fabricators . | . . . . Repair Stations . | . . . . Recycling Units . | . . . . Scanalyzers . | . . . . Garrison Access . | . . . . Total Hacks 10 | . 6 . 4 Successful 2 | . 1 . 1 Failed 8 | . 5 . 3 Catastrophic 3 | . 2 . 1 Database Lockouts . | . . . . Manual 10 | . 6 . 4 Terminals 10 | . 6 . 4 Fabricators . | . . . . Repair Stations . | . . . . Recycling Units . | . . . . Scanalyzers . | . . . . Garrison Access . | . . . . Terminal Hacks 2 | . 1 . 1 Unreport Threat 1 | . 1 . . Disarm Traps 1 | . . . 1 Fabricator Hacks . | . . . . Repair Station Hacks . | . . . . Recycling Unit Hacks . | . . . . Scanalyzer . | . . . . Garrison Access Hacks . | . . . . Unauthorized Hacks . | . . . . Terminals . | . . . . Fabricators . | . . . . Repair Stations . | . . . . Recycling Units . | . . . . Scanalyzers . | . . . . Garrison Access . | . . . . Data Cores Recovered . | . . . . Used . | . . . . Hacking Detections 4 | . 3 . 1 Full Trace Events 1 | . . . 1 Feedback Events . | . . . . Feedback Blocked . | . . . . Robot Schematics Acquired . | . . . . Robots Built . | . . . . Authchips . | . . . . Time . | . . . . Total Robot Build Rating . | . . . . Part Schematics Acquired . | . . . . Parts Built . | . . . . Authchips . | . . . . Time . | . . . . Total Part Build Rating . | . . . . Part Studies Acquired . | . . . . Parts Repaired . | . . . . Time . | . . . . Parts Recycled . | . . . . Recycled Matter . | . . . . Retrieved Matter . | . . . . Retrieved Components . | . . . . Parts Scanalyzed . | . . . . Part Schematics Acquired . | . . . . Parts Damaged . | . . . . Bothacking | -11 -10 -9 -8 ------------ Run | Yrd Mat Mat Mat Used RIF Installer . | . . . . Robots Hacked . | . . . . Non-combat . | . . . . Combat . | . . . . Robot Hacks Applied . | . . . . Relay Couplers Released . | . . . . Fabnet Peak Effective % . | . . . . Robots Rewired . | . . . . Allies Hacked . | . . . . Hacks Repelled . | . . . . Allies | -11 -10 -9 -8 -------- Run | Yrd Mat Mat Mat Total Allies . | . . . . Largest Group . | . . . . Highest-Rated Group . | . . . . Highest-Rated Ally . | . . . . Total Orders . | . . . . Ally Attacks . | . . . . Total Damage . | . . . . Kills . | . . . . Allies Corrupted . | . . . . Allies Melted . | . . . . Intel | -11 -10 -9 -8 ------- Run | Yrd Mat Mat Mat Active Infowar (turns) 1234 | . 66 440 728 Optics 56 | . . . 56 Sensors 1233 | . 66 440 727 Robot Analysis Total . | . . . . Derelict Logs Recovered . | . . . . Drone Launches . | . . . . Drone Recoveries . | . . . . Exploration | -11 -10 -9 -8 ------------- Run | Yrd Mat Mat Mat Turns Passed 2071 | 114 774 440 743 Spaces Moved 1004 | 75 391 176 362 Core 10 | 10 . . . Treads . | . . . . Legs 994 | 65 391 176 362 Wheels . | . . . . Hover . | . . . . Flight . | . . . . Fastest Speed 50 | 50 120 120 120 Average Speed 145 | 110 155 176 127 Slowest Speed 190 | 120 190 190 190 Overloaded Moves . | . . . . Propulsion Burnouts . | . . . . Robots Hopped . | . . . . Potential Cave-ins . | . . . . Cave-ins Triggered . | . . . . Exploration Rate (%) 23 | 6 52 22 15 Regions Visited 3 Branch Regions . Pre-discovered Areas . | . . . . Known Exits Taken . | . . . . Unknown Exits Taken 3 | 1 1 1 . Scrap Searched . | . . . . Spaces Dug . | . . . . Terrain Destroyed . | . . . . Melee . | . . . . Projectile . | . . . . AOE . | . . . . Terrain Rammed . | . . . . Walls Destroyed . | . . . . Machines Disabled . | . . . . Actions | -11 -10 -9 -8 --------- Run | Yrd Mat Mat Mat Total 1406 | 98 492 260 556 Wait 166 | . 26 58 82 Move 1001 | 74 390 175 362 Hop . | . . . . Pick Up 56 | 13 19 1 23 Fast Attach . | . . . . Attach 24 | 7 2 3 12 Detach . | . . . . Swap 13 | . 6 . 7 Drop 19 | . 11 . 8 Fire 122 | 4 35 23 60 Melee 2 | . . . 2 Ram . | . . . . Kick 3 | . 3 . . Crush . | . . . . Escape Stasis . | . . . . Rewire . | . . . . Trap . | . . . . Miscellaneous . | . . . . Route ------- -11/Scrapyard -10/Materials (discovered 2 exits: [*Mat] / [*Min]) -9/Materials -8/Materials History --------- Turn | Location | Event 4 | -11/Scrapyard | Discovered new exit (range 16) 115 | -11/Scrapyard | Entered Materials 221 | -10/Materials | Discovered new exit (range 7) 309 | -10/Materials | Build established: Mutant 760 | -10/Materials | Core integrity fell below 50% 864 | -10/Materials | Discovered new exit (range 14) 889 | -10/Materials | Entered another Materials area 889 | -9/Materials | Evolved 2 slots: Propulsion x1, Utility x1 1303 | -9/Materials | Discovered new exit (range 8) 1329 | -9/Materials | Entered another Materials area 1329 | -8/Materials | Evolved 2 slots: Propulsion x1, Utility x1 1631 | -8/Materials | Build established: Scavenger-Mutant 2008 | -8/Materials | Core integrity fell below 50% 2032 | -8/Materials | Lost 3 parts (1n2u) 2072 | -8/Materials | Self-destructed Last Messages --------------- 01994_ S-10 Pest destroyed. 02001_ Sensor Array destroyed. 02002_ S-10 Pest destroyed. 02008_ K-01 Serf collects debris. 02012_ S-10 Pest destroyed. 02015_ K-01 Serf collects debris. 02020_ Acquired 6 matter. 02023_ K-01 Serf collects debris. 02025_ R-06 Scavenger collects Targeting Computer. 02025_ Acquired 11 matter. 02027_ K-01 Serf collects debris. 02031_ Acquired 58 matter. 02037_ Acquired Aluminum Leg. 02039_ R-06 Scavenger collects Lgt. Ion Engine. 02039_ Acquired Aluminum Leg. 02042_ R-06 Scavenger collects Imp. Heat Sink. 02042_ Acquired Microactuators. 02065_ K-01 Serf collects debris. 02069_ Carbon-fiber Leg destroyed. Map ----- +----------------------------------------------------+ | ?????????????????????????????????????????????????? | | ?????????????????????????????????????????????????? | | ?????????????????????????????????????????????????? | | ?????????????????????????????????????????????????? | | ?????????????????????????????????????????????????? | | ?????????????????????????????????????????????????? | | ?????????????????????????????????????????????????? | | ?????????????????????????????????????????????????? | | ?????????????????????????????????????????????????? | | ?????????????????????????????? ??????????????????? | | ?????????????????????????????? #????????????????? | | ?????????????????????????????" #????????????????? | | ????????????????????????????? ?????????????????? | | ????????????????????????????? ?????????????????? | | ???????????????????????????? #?????????????????? | | ???????????????????????????? #?????????????????? | | ???????????????????????????? #?????????????????? | | ???????????????????????????# #?????????????????? | | ???????????????????????????# #?????????????????? | | ???????????????????????????# #????????????###### | | ????????????????????+####### ############## | | ??????????????????? | | ??????????????????? | | ??????????????????? g ## | | ????????????????????????#gb ################# #? | | ????????????????????????#@ #?????# ! T # #? | | ????????????????????????# #?????# ! + #? | | ????????????????????????# #?????# # #? | | ????????????????????????# #?????# ! =# #? | | ????????????????????????# #?????########### #? | | ????????????????????????# ###########?????# #? | | ????????????????????????# # #?????# #? | | ????????????????????????# k# #?????# #? | | ????????????????????????# |*#[ #?????# #? | | ????????????????????????# %!+ ! #?????# #? | | ????????????????????????# =#=* #?????# #? | | ????????????????????????#*k # #????## ## | | ????????????????????#####%= #*[= #????# # | | ????????????????????#// # #????# # | | ????????????????????# ###+#######????# T # | | ????????????????????# % #########! # | | ????????????????????#[ % # | | ????????????????????# ! ######## | | ????????????????????#! ! ! """ #??????? | | ????????????????????##### ! ! """"" #??????? | | ????????????????????????# !! """"" #??????? | | ????????????????????????# """"" ! #??????? | | ????????????????????????# """ #??????? | | ????????????????????????# #??????? | | ????????????????????????# #??????? | +----------------------------------------------------+ Best States ------------- Heat Dissipation 31 Energy Generation 14 Energy Capacity 280 Matter Stores 300 Matter Capacity 300 Sight Range 20 Robot Scan Range 15 Terrain Scan Density 10 Weapon Shielding 33 Melee Speed Boost 20 Evasion (%) 55 Item Schematics ----------------- None Robot Schematics ------------------ None Fabricated ------------ Nothing Repaired ---------- Nothing Studied --------- None Alien Tech Used ----------------- None Achievements -------------- None Challenges ------------ None Game ------ Seed HeavyHackingHoverbase Manual? 0 Play Time 00:18:47 Cumulative 22.0 hours Start 2025.12.19 @ 00:40:47 End 2025.12.19 @ 00:56:38 Sessions 1 Manual Loads 0 Difficulty Rogue Special Mode None Game No. 26 Rogue 26 Adventurer 0 Explorer 0 Win Type - Total 0 Types 0/0/0/0/0/0/0/0/0/0 Lore% 13 Gallery% 24 Achievement% 19 Wizard Run 0 Options --------- Layout 1 ASCII 0 Keyboard 0 Movement Numpad Keybinds 1 Fullscreen 1 Font 24/Smallcaps Map View 50x35 Zoom Use 0% Tactical HUD 1 Map Filters NONE Filters NONE Steam 1 RUN: 8a10535f-3118-4f91-b718-0786eace1997